lending/lending_fUSD_20260124
["ID","MTS","AMOUNT","RATE_DAILY","PERIOD"]
[403174261,1769242263633,-2165.939421,0.00017891,2]
[403174262,1769242263642,-3190.85960407,0.00018,2]
[403174263,1769242263654,-4472.34233975,0.00018,2]
[403174264,1769242263665,-1270.02328596,0.00018,2]
[403174265,1769242263676,-13259.25836996,0.00018,2]
[403174266,1769242264590,10000.01,0.000125,2]
[403174267,1769242291679,1050.88046112,0.00012499,3]
[403174268,1769242300815,-4072.522,0.0001225,2]
[403174269,1769242300878,-331.207,0.0001225,2]
[403174270,1769242302892,-1192.552,0.000125,2]
[403174271,1769242306018,-10000.01,0.000125,2]
[403174272,1769242335811,548.79970243,0.000176,30]
[403174273,1769242339777,-291.52768836,0.000124,2]
[403174274,1769242339835,-150.0,0.00012499,2]
[403174275,1769242339894,-300.0,0.00012499,2]
[403174276,1769242340103,-8516.95462328,0.000125,2]
[403174277,1769242340183,-10000.01,0.000125,2]
[403174278,1769242340338,500.0,0.000176,30]
[403174279,1769242346912,500.0,0.000176,30]
[403174280,1769242351736,-230.11446566,0.000124,2]
[403174281,1769242351842,-9539.78106868,0.000125,2]
[403174282,1769242351986,-10000.01,0.000125,2]
[403174283,1769242355140,-10000.01,0.000125,2]
[403174284,1769242355454,-10000.01,0.000125,2]
[403174285,1769242355642,-10000.01,0.000125,2]
[403174286,1769242355830,-10000.01,0.000125,2]
[403174287,1769242355993,-10000.01,0.000125,2]
[403174288,1769242357869,-10000.01,0.000125,2]
[403174289,1769242357943,600.0,0.000128,4]
[403174290,1769242358055,-10000.01,0.000125,2]
[403174291,1769242358256,-511.62025284,0.00012499,2]
[403174292,1769242358321,-287.24370852,0.00012499,2]
[403174293,1769242358384,-468.94582406,0.00012499,2]
[403174294,1769242358676,-7464.39042916,0.000125,2]
[403174295,1769242360335,1300.0,0.000129,4]
[403174296,1769242391870,-2040.69381838,0.000124,2]
[403174297,1769242391938,-300.0,0.00012498,2]
[403174298,1769242392015,-1069.64539735,0.00012499,2]
[403174299,1769242392084,-1069.64539735,0.00012499,2]
[403174300,1769242392418,-1069.64539735,0.00012499,2]
[403174301,1769242392492,-1069.64539735,0.00012499,2]
[403174302,1769242392566,-1069.64539735,0.00012499,2]
[403174303,1769242392640,-1069.64539735,0.00012499,2]
[403174304,1769242392715,-373.20142385,0.00012499,2]
[403174305,1769242392994,-696.4439735,0.00012499,2]
[403174306,1769242393076,-1069.64539735,0.00012499,2]
[403174307,1769242403557,1800.0,0.000128,4]
[403174308,1769242405640,3600.0,0.000129,4]
[403174309,1769242406782,-156.53764889,0.00012399,2]
[403174310,1769242406850,-1200.0,0.00012498,2]
[403174311,1769242406919,-1069.64539735,0.00012499,2]
[403174312,1769242406996,-1069.64539735,0.00012499,2]
[403174313,1769242407071,-1069.64539735,0.00012499,2]
[403174314,1769242407377,-1069.64539735,0.00012499,2]
[403174315,1769242407814,-1069.64539735,0.00012499,2]
[403174316,1769242407884,-1069.64539735,0.00012499,2]
[403174317,1769242407956,-500.0,0.00012499,2]
[403174318,1769242408036,-1069.64539735,0.00012499,2]
[403174319,1769242408286,-1069.64539735,0.00012499,2]
[403174320,1769242408376,-1069.64539735,0.00012499,2]
[403174321,1769242408442,-1069.64539735,0.00012499,2]
[403174322,1769242408512,-1069.64539735,0.00012499,2]
[403174323,1769242408582,-436.07859418,0.00012499,2]
[403174324,1769242408650,-70.68963284,0.00012499,2]
[403174325,1769242408795,-429.31036716,0.00012499,2]
[403174326,1769242408858,-267.73246324,0.00012499,2]
[403174327,1769242408922,-500.0,0.00012499,2]
[403174328,1769242408989,-1069.64539735,0.00012499,2]
[403174329,1769242409060,-1069.64539735,0.00012499,2]
[403174330,1769242409122,-260.81744888,0.00012499,2]
[403174331,1769242409183,-202.88619949,0.00012499,2]
[403174332,1769242409244,-500.0,0.00012499,2]
[403174333,1769242409312,-330.29005571,0.00012499,2]
[403174334,1769242409955,-739.35534164,0.00012499,2]
[403174335,1769242410024,-1067.06793856,0.00012499,2]
[403174336,1769242410088,-500.0,0.00012499,2]
[403174337,1769242410156,-1069.64539735,0.00012499,2]
[403174338,1769242410224,-1069.64539735,0.00012499,2]
[403174339,1769242410289,-488.95953608,0.00012499,2]
[403174340,1769242410400,-1069.64539735,0.00012499,2]
[403174341,1769242410470,-1069.64539735,0.00012499,2]
[403174342,1769242410540,-1067.06793856,0.00012499,2]
[403174343,1769242410613,-1069.64539735,0.00012499,2]
[403174344,1769242410680,-380.93380022,0.00012499,2]
[403174345,1769242410936,-686.13413834,0.00012499,2]
[403174346,1769242411001,-1069.64539735,0.00012499,2]
[403174347,1769242411073,-1067.06793856,0.00012499,2]
[403174348,1769242411140,-1069.64539735,0.00012499,2]
[403174349,1769242411210,-1069.64539735,0.00012499,2]
[403174350,1769242411570,-1067.06793856,0.00012499,2]
[403174351,1769242411644,-1067.06793856,0.00012499,2]
[403174352,1769242411714,-1067.06793856,0.00012499,2]
[403174353,1769242411783,-1067.06793856,0.00012499,2]
[403174354,1769242411848,-396.39855296,0.00012499,2]
[403174355,1769242412073,-670.6693856,0.00012499,2]
[403174356,1769242412140,-1067.06793856,0.00012499,2]
[403174357,1769242412213,-1069.64539735,0.00012499,2]
[403174358,1769242412279,-1069.64539735,0.00012499,2]
[403174359,1769242412347,-1067.06793856,0.00012499,2]
[403174360,1769242413278,-1067.06793856,0.00012499,2]
[403174361,1769242413345,-1067.06793856,0.00012499,2]
[403174362,1769242413417,-1069.64539735,0.00012499,2]
[403174363,1769242413487,-1067.06793856,0.00012499,2]
[403174364,1769242413556,-388.66617659,0.00012499,2]
[403174365,1769242413732,-680.97922076,0.00012499,2]
[403174366,1769242413798,-1067.06793856,0.00012499,2]
[403174367,1769242413865,-1067.06793856,0.00012499,2]
[403174368,1769242413933,-1067.06793856,0.00012499,2]
[403174369,1769242414000,-1069.64539735,0.00012499,2]
[403174370,1769242414328,-1067.06793856,0.00012499,2]
[403174371,1769242414400,-1069.64539735,0.00012499,2]
[403174372,1769242414468,-1067.06793856,0.00012499,2]
[403174373,1769242414537,-1067.06793856,0.00012499,2]
[403174374,1769242414606,-391.24363538,0.00012499,2]
[403174375,1769242415635,-675.82430318,0.00012499,2]
[403174376,1769242415696,-708.80905566,0.00012499,2]
[403174377,1769242416347,-358.2588829,0.00012499,2]
[403174378,1769242416418,-1067.06793856,0.00012499,2]
[403174379,1769242416486,-1067.06793856,0.00012499,2]
[403174380,1769242416555,-1069.64539735,0.00012499,2]
[403174381,1769242416625,-1069.64539735,0.00012499,2]
[403174382,1769242416722,-1067.06793856,0.00012499,2]
[403174383,1769242416791,-1067.06793856,0.00012499,2]
[403174384,1769242416861,-1067.06793856,0.00012499,2]
[403174385,1769242416931,-1067.06793856,0.00012499,2]
[403174386,1769242417001,-393.82109417,0.00012499,2]
[403174387,1769242417157,-675.82430318,0.00012499,2]
[403174388,1769242417232,-1067.06793856,0.00012499,2]
[403174389,1769242417310,-1067.06793856,0.00012499,2]
[403174390,1769242417381,-1067.06793856,0.00012499,2]
[403174391,1769242417456,-1067.06793856,0.00012499,2]
[403174392,1769242417787,-1067.06793856,0.00012499,2]
[403174393,1769242417857,-1067.06793856,0.00012499,2]
[403174394,1769242417929,-1067.06793856,0.00012499,2]
[403174395,1769242417999,-1067.06793856,0.00012499,2]
[403174396,1769242418298,-396.39855296,0.00012499,2]
[403174397,1769242418452,-670.6693856,0.00012499,2]
[403174398,1769242418528,-1067.06793856,0.00012499,2]
[403174399,1769242418603,-1067.06793856,0.00012499,2]
[403174400,1769242418676,-1067.06793856,0.00012499,2]
[403174401,1769242418749,-1067.06793856,0.00012499,2]
[403174402,1769242419647,-1067.06793856,0.00012499,2]
[403174403,1769242419720,-1067.06793856,0.00012499,2]
[403174404,1769242419789,-1067.06793856,0.00012499,2]
[403174405,1769242419857,-1067.06793856,0.00012499,2]
[403174406,1769242419932,-396.39855296,0.00012499,2]
[403174407,1769242420444,-670.6693856,0.00012499,2]
[403174408,1769242420513,-1067.06793856,0.00012499,2]
[403174409,1769242420581,-1067.06793856,0.00012499,2]
[403174410,1769242420650,-1065.86512444,0.00012499,2]
[403174411,1769242420720,-1065.86512444,0.00012499,2]
[403174412,1769242421763,-297.20141665,0.00012499,2]
[403174413,1769242423062,-768.66370779,0.00012499,2]
[403174414,1769242423138,-1065.86512444,0.00012499,2]
[403174415,1769242423512,-792.06983676,0.000125,2]
[403174416,1769242423575,-1067.06793856,0.000125,2]
[403174417,1769242423657,-670.6693856,0.000125,2]
[403174418,1769242423708,-1067.06793856,0.000125,2]
[403174419,1769242423763,-1067.06793856,0.000125,2]
[403174420,1769242423819,-1065.86512444,0.000125,2]
[403174421,1769242423878,-1065.86512444,0.000125,2]
[403174422,1769242423936,-126.9389768,0.000125,2]
[403174423,1769242424211,-230.5690254,0.000125,2]
[403174424,1769242424283,-768.66370779,0.000125,2]
[403174425,1769242424333,-1065.86512444,0.000125,2]
[403174426,1769242424395,-6330.95233554,0.000125,2]
[403174427,1769242424450,-10000.01,0.000125,2]
[403174428,1769242424506,-10000.01,0.000125,2]
[403174429,1769242424587,-10000.01,0.000125,2]
[403174430,1769242424647,-10000.01,0.000125,2]
[403174431,1769242424740,-10000.01,0.000125,2]
[403174432,1769242424804,-10000.01,0.000125,2]
[403174433,1769242424856,-10000.01,0.000125,2]
[403174434,1769242575478,1050.88046112,0.00012499,3]
[403174435,1769242598729,-247.856643,0.00012399,2]
[403174436,1769242601019,-52.143357,0.00012399,2]
[403174437,1769242601077,-261.85558081,0.00012399,2]
[403174438,1769242602945,-274.61431748,0.00012399,2]
[403174439,1769242606186,-194.58091449,0.00012399,2]
[403174440,1769242610236,10000.0,0.000226,120]
[403174441,1769242619374,10000.0,0.000226,120]
[403174442,1769242658535,-451.07962067,0.00012399,2]
[403174443,1769242660717,-17.86956655,0.00012399,2]
[403174444,1769242660779,-172.78329062,0.00012399,2]
[403174445,1769242663550,-127.21670938,0.00012399,2]
[403174446,1769242663608,-194.48627414,0.000124,2]
[403174447,1769242666436,-55.51372586,0.000124,2]
[403174448,1769242666495,-141.57674162,0.000124,2]
[403174449,1769242668702,-345.94478581,0.000124,2]
[403174450,1769242671799,-313.32888976,0.000124,2]
[403174451,1769242671825,1120.0,0.000226,120]
[403174452,1769242704226,-300.0,0.00012399,2]
[403174453,1769242704286,-78.00494286,0.00012399,2]
[403174454,1769242707208,-221.99505714,0.00012399,2]
[403174455,1769242707272,-63.52466279,0.00012399,2]
[403174456,1769242709441,-86.47533721,0.00012399,2]
[403174457,1769242709511,-281.96627424,0.00012399,2]
[403174458,1769242712223,-180.38574137,0.00012399,2]
[403174459,1769242715947,-185.0,0.00012399,2]
[403174460,1769242720593,-300.0,0.00012399,2]
[403174461,1769242722834,-176.79782439,0.00012399,2]
[403174462,1769242725860,-75.85016,0.00012399,2]
[403174463,1769242725914,-192.3108277,0.000124,2]
[403174464,1769242730157,-354.73942231,0.000124,2]
[403174465,1769242731760,-175.19705742,0.000124,2]
[403174466,1769242733396,-221.80068755,0.000124,2]
[403174467,1769242736425,-251.32815818,0.000124,2]
[403174468,1769242740445,-229.37692669,0.000124,2]
[403174469,1769242743377,-295.66994095,0.000124,2]
[403174470,1769242745651,-297.21630414,0.000124,2]
[403174471,1769242747818,-205.96607681,0.000124,2]
[403174472,1769242752025,-532.67699838,0.000124,2]
[403174473,1769242754574,-182.45321182,0.000124,2]
[403174474,1769242758061,-282.93022308,0.000124,2]
[403174475,1769242759669,-323.15251754,0.000124,2]
[403174476,1769242763507,-232.09640326,0.000124,2]
[403174477,1769242778577,-227.21,0.000124,2]
[403174478,1769242778636,-72.79,0.000124,2]
[403174479,1769242780808,-249.48742691,0.000124,2]
[403174480,1769242783075,-280.39885499,0.000124,2]
[403174481,1769242785351,-207.93275091,0.000124,2]
[403174482,1769242788794,-249.57927344,0.000124,2]
[403174483,1769242790462,-209.45575477,0.000124,2]
[403174484,1769242792895,-280.0356392,0.000124,2]
[403174485,1769242797993,-237.64234053,0.000124,2]
[403174486,1769242800175,-200.22499774,0.000124,2]
[403174487,1769242801715,-346.77395253,0.00012399,2]
[403174488,1769242804455,-195.0,0.00012399,2]
[403174489,1769242807533,-155.24071074,0.00012399,2]
[403174490,1769242809733,-300.0,0.00012399,2]
[403174491,1769242812020,-171.63552027,0.00012399,2]
[403174492,1769242813723,-31.34981646,0.00012399,2]
[403174493,1769242813779,-137.24563909,0.00012399,2]
[403174494,1769242815862,-114.75436091,0.00012399,2]
[403174495,1769242815920,-62.66201511,0.000124,2]
[403174496,1769242817699,-168.15643284,0.000124,2]
[403174497,1769242819942,-69.18155205,0.000124,2]
[403174498,1769242819997,-217.55989941,0.000124,2]
[403174499,1769242821625,-165.38809843,0.000124,2]
[403174500,1769242824665,-461.77467345,0.000124,2]
[403174501,1769242827441,-358.06244773,0.000124,2]
[403174502,1769242831630,-244.33214218,0.000124,2]
[403174503,1769242833840,-219.33823485,0.000124,2]
[403174504,1769242836032,-199.77571834,0.000124,2]
[403174505,1769242837856,-262.80801449,0.000124,2]
[403174506,1769242840100,-188.41388948,0.000124,2]
[403174507,1769242841806,-217.12319244,0.000124,2]
[403174508,1769242844067,-176.28860616,0.000124,2]
[403174509,1769242847048,-417.16755992,0.000124,2]
[403174510,1769242848629,-193.18732749,0.000124,2]
[403174511,1769242853636,-238.19873751,0.000124,2]
[403174512,1769242855639,-199.09395867,0.000124,2]
[403174513,1769242857078,-209.51412181,0.000124,2]
[403174514,1769242868608,-300.0,0.00012399,2]
[403174515,1769242868666,-251.22428166,0.00012399,2]
[403174516,1769242871966,-48.77571834,0.00012399,2]
[403174517,1769242872028,-155.23453113,0.000124,2]
[403174518,1769242873592,-413.47485461,0.000124,2]
[403174519,1769242875268,-263.01029106,0.000124,2]
[403174520,1769242878834,-205.78210821,0.000124,2]
[403174521,1769242880983,-250.4054372,0.000124,2]
[403174522,1769242882504,-501.00782437,0.000124,2]
[403174523,1769242884834,-381.65287247,0.000124,2]
[403174524,1769242886880,-160.14991565,0.000124,2]
[403174525,1769242890227,-214.79177468,0.000124,2]
[403174526,1769242892527,-179.954532,0.000124,2]
[403174527,1769242894769,-178.70738696,0.000124,2]
[403174528,1769242897041,-401.16699822,0.000124,2]
[403174529,1769242899616,-346.98688801,0.000124,2]
[403174530,1769242902883,-209.21893678,0.000124,2]
[403174531,1769242904752,-458.39342186,0.000124,2]
[403174532,1769242906359,-313.91034674,0.000124,2]
[403174533,1769242909828,-277.1528763,0.000124,2]
[403174534,1769242909881,-3.25661165,0.000124,2]
[403174535,1769242911872,-330.14659575,0.000124,2]
[403174536,1769242915292,-350.63134384,0.000124,2]
[403174537,1769242916888,-69.54986946,0.000124,2]
[403174538,1769242916943,-139.03843703,0.000124,2]
[403174539,1769242919132,-390.66590947,0.000124,2]
[403174540,1769242921418,-288.3268377,0.000124,2]
[403174541,1769242923030,-308.68261763,0.000124,2]
[403174542,1769242924962,-182.57215667,0.000124,2]
[403174543,1769242927164,-183.85483595,0.000124,2]
[403174544,1769242929869,-192.88371431,0.000124,2]
[403174545,1769242932175,-236.90060527,0.000124,2]
[403174546,1769242935742,-255.69688058,0.000124,2]
[403174547,1769242938287,-392.40814424,0.000124,2]
[403174548,1769242938541,500.0,0.000176,30]
[403174549,1769242939984,500.0,0.000176,30]
[403174550,1769242940463,-159.99371674,0.000124,2]
[403174551,1769242958652,-315.73649027,0.000124,2]
[403174552,1769242960850,-203.14186998,0.000124,2]
[403174554,1769242962559,-202.2191889,0.000124,2]
[403174555,1769242965877,-211.16229621,0.000124,2]
[403174556,1769242968598,-151.63403555,0.000124,2]
[403174557,1769242971452,-170.11123983,0.000124,2]
[403174558,1769242979306,-1072.88001028,0.000124,2]
[403174559,1769242979370,-502.3896138,0.000124,2]
[403174560,1769242979437,-2904.41075184,0.00012401,2]
[403174561,1769242979555,-303.83949465,0.00012401,2]
[403174562,1769242979675,-736.80975351,0.00012401,2]
[403174563,1769242979686,-300.0,0.0001249,2]
[403174564,1769242979696,-3.83949465,0.0001249,2]
[403174565,1769242984015,-210.76,0.00012397,2]
[403174566,1769242984077,-99.89375151,0.0001249,2]
[403174567,1769242985216,-46.26675384,0.0001249,2]
[403174568,1769242985281,-300.0,0.0001249,2]
[403174569,1769242985354,-500.0,0.00012492,2]
[403174570,1769242985417,-150.0,0.00012492,2]
[403174571,1769242985481,-503.50288204,0.00012492,2]
[403174572,1769242985549,-500.0,0.00012492,2]
[403174573,1769242985617,-500.0,0.00012492,2]
[403174574,1769242985683,-500.0,0.00012492,2]
[403174575,1769242985753,-500.0,0.00012492,2]
[403174576,1769242985819,-500.0,0.00012492,2]
[403174577,1769242985887,-500.0,0.00012492,2]
[403174578,1769242985958,-500.0,0.00012492,2]
[403174579,1769242986687,-0.47072824,0.00012492,2]
[403174580,1769242986816,-154.97974583,0.00012492,2]
[403174581,1769242994578,-10000.01,0.00012468,2]
[403174582,1769242994654,-4336.69,0.00012468,2]
[403174583,1769242994726,-1326.63,0.00012468,2]
[403174584,1769242994857,-344.54952593,0.00012492,2]
[403174585,1769242994937,-500.0,0.00012492,2]
[403174586,1769242995011,-500.0,0.00012492,2]
[403174587,1769242995091,-500.0,0.00012492,2]
[403174588,1769242995169,-500.0,0.00012492,2]
[403174589,1769242995245,-500.0,0.00012492,2]
[403174590,1769242995321,-500.0,0.00012492,2]
[403174591,1769242995406,-617.47249126,0.00012492,2]
[403174592,1769242995481,-500.0,0.00012492,2]
[403174593,1769242995555,-500.0,0.00012492,2]
[403174594,1769242995811,-500.0,0.00012492,2]
[403174595,1769242995883,-500.0,0.00012492,2]
[403174596,1769242995955,-500.0,0.00012492,2]
[403174597,1769242996026,-500.0,0.00012492,2]
[403174598,1769242996095,-500.0,0.00012492,2]
[403174599,1769242996163,-500.0,0.00012492,2]
[403174600,1769242996232,-500.0,0.00012492,2]
[403174601,1769242996302,-500.0,0.00012492,2]
[403174602,1769242996372,-500.0,0.00012492,2]
[403174603,1769242996445,-500.0,0.00012492,2]
[403174604,1769242996678,-500.0,0.00012492,2]
[403174605,1769242996748,-500.0,0.00012492,2]
[403174606,1769242996817,-769.78548406,0.00012492,2]
[403174607,1769242996887,-769.78548406,0.00012492,2]
[403174608,1769242996959,-769.78548406,0.00012492,2]
[403174609,1769242997029,-769.78548406,0.00012492,2]
[403174610,1769242997098,-769.78548406,0.00012492,2]
[403174611,1769242999024,-75.97596562,0.00012492,2]
[403174612,1769242999075,-302.1551594,0.00012492,2]
[403174613,1769242999148,-391.65435904,0.00012492,2]
[403174614,1769242999220,-769.78548406,0.00012492,2]
[403174615,1769242999291,-769.78548406,0.00012492,2]
[403174616,1769242999364,-769.78548406,0.00012492,2]
[403174617,1769242999437,-769.78548406,0.00012492,2]
[403174618,1769242999508,-769.78548406,0.00012492,2]
[403174619,1769242999577,-749.06095726,0.00012492,2]
[403174620,1769242999650,-20.7245268,0.00012492,2]
[403174621,1769242999710,-225.23063857,0.00012492,2]
[403174622,1769242999788,-544.55484549,0.00012492,2]
[403174623,1769242999855,-769.78548406,0.00012492,2]
[403174624,1769242999924,-769.78548406,0.00012492,2]
[403174625,1769242999995,-769.78548406,0.00012492,2]
[403174626,1769243000066,-769.78548406,0.00012492,2]
[403174627,1769243000138,-769.78548406,0.00012492,2]
[403174628,1769243000214,-443.25998436,0.00012492,2]
[403174629,1769243001118,-347.2500265,0.0001247,2]
[403174630,1769243001240,-195.0,0.0001247,2]
[403174631,1769243002411,-209.40344106,0.0001247,2]
[403174632,1769243005278,-191.79568348,0.0001247,2]
[403174633,1769243006560,-897.75084896,0.0001247,2]
[403174634,1769243006631,-326.5254997,0.00012492,2]
[403174635,1769243006700,-769.78548406,0.00012492,2]
[403174636,1769243006770,-769.78548406,0.00012492,2]
[403174637,1769243006839,-769.78548406,0.00012492,2]
[403174638,1769243006908,-769.78548406,0.00012492,2]
[403174639,1769243006979,-623.38794614,0.00012492,2]
[403174640,1769243007302,-146.39753792,0.00012492,2]
[403174641,1769243007373,-769.78548406,0.00012492,2]
[403174642,1769243007447,-769.78548406,0.00012492,2]
[403174643,1769243007520,-769.78548406,0.00012492,2]
[403174644,1769243007591,-769.78548406,0.00012492,2]
[403174645,1769243007668,-769.78548406,0.00012492,2]
[403174646,1769243007742,-769.78548406,0.00012492,2]
[403174647,1769243008017,-769.78548406,0.00012492,2]
[403174648,1769243008102,-769.78548406,0.00012492,2]
[403174649,1769243008182,-769.78548406,0.00012492,2]
[403174650,1769243008263,-769.78548406,0.00012492,2]
[403174651,1769243008342,-769.78548406,0.00012492,2]
[403174652,1769243008417,-769.78548406,0.00012492,2]
[403174653,1769243008549,-769.78548406,0.00012492,2]
[403174654,1769243008625,-759.28840929,0.00012492,2]
[403174655,1769243008698,-759.28840929,0.00012492,2]
[403174656,1769243008769,-759.28840929,0.00012492,2]
[403174657,1769243008840,-759.28840929,0.00012492,2]
[403174658,1769243008920,-759.28840929,0.00012492,2]
[403174659,1769243009004,-108.26652969,0.00012492,2]
[403174660,1769243010416,-511.21590566,0.00012492,2]
[403174661,1769243010467,-139.80597394,0.00012492,2]
[403174662,1769243010476,-619.48243535,0.00012492,2]
[403174663,1769243010552,-139.80597394,0.00012492,2]
[403174664,1769243010616,-250.85993553,0.00012492,2]
[403174665,1769243010666,-508.42847376,0.00012492,2]
[403174666,1769243010676,-250.85993553,0.00012492,2]
[403174667,1769243012422,-243.45483205,0.00012492,2]
[403174668,1769243014114,-256.54516795,0.00012492,2]
[403174669,1769243018175,-8.42847376,0.00012492,2]
[403174670,1769243018240,-402.46048229,0.00012492,2]
[403174671,1769243021171,-290.92210688,0.00012492,2]
[403174672,1769243023996,-65.90582012,0.00012492,2]
[403174673,1769243024063,-113.20802856,0.00012492,2]
[403174674,1769243026312,-387.92974064,0.00012492,2]
[403174675,1769243028452,-196.76014019,0.00012492,2]
[403174676,1769243030446,-61.3904999,0.00012492,2]
[403174677,1769243030508,-462.64055876,0.00012492,2]
[403174678,1769243032841,-296.64785053,0.00012492,2]
[403174679,1769243032905,-115.96783609,0.00012492,2]
[403174680,1769243035373,-254.29924118,0.00012492,2]
[403174681,1769243036958,-254.84613125,0.00012492,2]
[403174682,1769243039766,-134.17520077,0.00012492,2]
[403174683,1769243039820,-170.16172132,0.00012492,2]
[403174684,1769243040420,-589.12668797,0.00012492,2]
[403174685,1769243040489,-759.28840929,0.00012492,2]
[403174686,1769243040554,-759.28840929,0.00012492,2]
[403174687,1769243040624,-759.28840929,0.00012492,2]
[403174688,1769243040690,-759.28840929,0.00012492,2]
[403174689,1769243040754,-759.28840929,0.00012492,2]
[403174690,1769243040819,-469.58412187,0.00012492,2]
[403174691,1769243041081,-289.70428742,0.00012492,2]
[403174692,1769243041151,-759.28840929,0.00012492,2]
[403174693,1769243041219,-759.28840929,0.00012492,2]
[403174694,1769243041283,-928.0191668,0.00012492,2]
[403174695,1769243041339,-242.66,0.00012492,2]
[403174696,1769243041399,-200.0,0.00012493,2]
[403174697,1769243041457,-200.0,0.00012493,2]
[403174698,1769243041515,-500.0,0.00012493,2]
[403174699,1769243041571,-151.0,0.00012493,2]
[403174700,1769243041626,-500.0,0.00012493,2]
[403174701,1769243041682,-151.0,0.00012493,2]
[403174702,1769243041739,-138.0894544,0.00012493,2]
[403174703,1769243041906,10000.01,0.000124,2]
[403174704,1769243041961,680.98081958,0.000124,2]
[403174705,1769243042315,-196.42290902,0.00012493,2]
[403174706,1769243043209,-150.0,0.00012491,2]
[403174707,1769243043269,-165.48763658,0.00012493,2]
[403174708,1769243043328,-151.0,0.00012493,2]
[403174709,1769243043389,-500.0,0.00012493,2]
[403174710,1769243043448,-151.0,0.00012493,2]
[403174711,1769243043509,-500.0,0.00012493,2]
[403174712,1769243043571,-151.0,0.00012493,2]
[403174713,1769243043630,-500.0,0.00012493,2]
[403174714,1769243043691,-151.0,0.00012493,2]
[403174715,1769243043750,-500.0,0.00012493,2]
[403174716,1769243043808,-151.0,0.00012493,2]
[403174717,1769243043868,-500.0,0.00012493,2]
[403174718,1769243044184,-151.0,0.00012493,2]
[403174719,1769243044248,-151.0,0.00012493,2]
[403174720,1769243044310,-200.10887185,0.00012493,2]
[403174721,1769243044373,-500.0,0.00012493,2]
[403174722,1769243044437,-354.81698314,0.00012493,2]
[403174723,1769243045251,-145.18301686,0.00012493,2]
[403174724,1769243045307,-6.49461779,0.00012493,2]
[403174725,1769243046313,-188.0,0.00012367,2]
[403174726,1769243046374,-493.50538221,0.00012493,2]
[403174727,1769243046440,-500.0,0.00012493,2]
[403174728,1769243046504,-500.0,0.00012493,2]
[403174729,1769243046568,-500.0,0.00012493,2]
[403174730,1769243046631,-500.0,0.00012493,2]
[403174731,1769243046694,-500.0,0.00012493,2]
[403174732,1769243046758,-151.0,0.00012493,2]
[403174733,1769243046822,-500.0,0.00012493,2]
[403174734,1769243046890,-151.0,0.00012493,2]
[403174735,1769243046963,-500.0,0.00012493,2]
[403174736,1769243047027,-200.0,0.00012493,2]
[403174737,1769243047092,-151.0,0.00012493,2]
[403174738,1769243048572,-187.07118978,0.00012493,2]
[403174739,1769243050032,-296.66199893,0.00012493,2]
[403174740,1769243053661,-16.26681129,0.00012493,2]
[403174741,1769243053713,-151.0,0.00012493,2]
[403174742,1769243053764,-133.81337524,0.00012493,2]
[403174743,1769243056304,-175.31436043,0.00012493,2]
[403174744,1769243058519,-175.39869777,0.00012493,2]
[403174745,1769243059639,-15.47356656,0.00012493,2]
[403174746,1769243059691,-267.61962145,0.00012493,2]
[403174747,1769243062516,-232.38037855,0.00012493,2]
[403174748,1769243062573,-61.91045989,0.00012493,2]
[403174749,1769243065280,-304.80074815,0.00012493,2]
[403174750,1769243066928,-133.28879196,0.00012493,2]
[403174751,1769243066979,-90.62827347,0.00012493,2]
[403174752,1769243070313,-165.17107784,0.00012493,2]
[403174753,1769243072555,-209.20770058,0.00012493,2]
[403174754,1769243073218,2943.304531,0.0001243,2]
[403174755,1769243074246,-34.99294811,0.00012493,2]
[403174756,1769243074302,-151.0,0.00012493,2]
[403174757,1769243074358,-151.0,0.00012493,2]
[403174758,1769243074416,-151.0,0.00012493,2]
[403174759,1769243074472,-128.50705189,0.00012493,2]
[403174760,1769243076527,-22.49294811,0.00012493,2]
[403174761,1769243076580,-151.0,0.00012493,2]